bitfinex-derivatives/quotes_BTCF0:USTF0_20250501
["timestamp","ask_amount","ask_price","bid_price","bid_amount"]
[1746097094128,0.5049506,96116.0,96115.0,0.17857493]
[1746097094334,0.5069506,96116.0,96115.0,0.17857493]
[1746097096833,0.5049506,96116.0,96115.0,0.17857493]
[1746097097023,0.5069506,96116.0,96115.0,0.17857493]
[1746097097426,0.5049506,96116.0,96115.0,0.17857493]
[1746097097627,0.5069506,96116.0,96115.0,0.17857493]
[1746097102825,0.3350506,96116.0,96115.0,0.17857493]
[1746097105436,0.3350506,96116.0,96115.0,0.27857493]
[1746097117449,0.3350506,96116.0,96115.0,0.37857493]
[1746097118249,0.2130506,96116.0,96115.0,0.37857493]
[1746097119247,0.3350506,96116.0,96115.0,0.37857493]
[1746097119840,0.3350906,96116.0,96115.0,0.37857493]
[1746097120146,0.2130906,96116.0,96115.0,0.37857493]
[1746097120346,0.04091666,96137.0,96115.0,1.55421493]
[1746097120649,0.24899477,96137.0,96136.0,0.3608]
[1746097120942,0.0519969,96146.0,96136.0,0.6608]
[1746097121141,0.208003,96138.0,96137.0,0.2456]
[1746097121339,0.20279892,96140.0,96137.0,0.3981]
[1746097121544,0.2080028,96139.0,96137.0,0.3981]
[1746097121742,0.20280232,96139.0,96137.0,0.3981]
[1746097121943,0.20280232,96139.0,96138.0,0.104016]
[1746097122139,0.19764184,96139.0,96138.0,0.326016]
[1746097122447,0.19764184,96139.0,96138.0,0.624116]
[1746097122645,0.19244136,96139.0,96138.0,0.624116]
[1746097123146,0.18724088,96139.0,96138.0,0.624116]
[1746097123342,0.1850404,96139.0,96138.0,0.624116]
[1746097123547,0.1870404,96139.0,96138.0,0.624116]
[1746097123747,0.18183992,96139.0,96138.0,0.624116]
[1746097123950,0.00504,96139.0,96138.0,0.624116]
[1746097124140,0.36085401,96155.0,96138.0,0.624116]
[1746097124346,0.2599608,96154.0,96153.0,0.1]
[1746097124646,0.2599608,96154.0,96153.0,0.2]
[1746097125340,0.2079684,96154.0,96153.0,0.3]
[1746097125546,0.2080084,96154.0,96153.0,0.3]
[1746097125936,0.2080084,96154.0,96153.0,0.33736785]
[1746097126347,0.2080084,96154.0,96153.0,0.33836785]
[1746097136042,0.4833084,96154.0,96153.0,0.23836785]
[1746097136248,0.7521084,96154.0,96153.0,0.23836785]
[1746097136447,0.4768084,96154.0,96153.0,0.23836785]
[1746097136846,0.4767684,96154.0,96153.0,0.23836785]
[1746097137052,0.4768084,96154.0,96153.0,0.23836785]
[1746097137650,0.3300084,96154.0,96153.0,0.23836785]
[1746097137951,0.3299684,96154.0,96153.0,0.33836785]
[1746097138139,0.2080084,96154.0,96153.0,0.33836785]
[1746097143054,0.2079684,96154.0,96153.0,0.33836785]
[1746097143254,0.2080084,96154.0,96153.0,0.33836785]
[1746097144253,4e-05,96154.0,96153.0,0.33836785]
[1746097144447,0.2079684,96154.0,96153.0,0.33836785]
[1746097144843,0.2080084,96154.0,96153.0,0.69916785]
[1746097145550,0.001,96156.0,96153.0,0.69916785]
[1746097145755,0.001,96156.0,96154.0,0.3927]
[1746097145954,0.20376796,96156.0,96154.0,0.3927]
[1746097146159,0.14,96165.0,96154.0,0.4927]
[1746097146160,0.2079662,96155.0,96154.0,0.4927]
[1746097146354,0.20276856,96155.0,96154.0,0.4927]
[1746097146657,0.19497235,96155.0,96154.0,0.49594842]
[1746097146959,0.18977471,96155.0,96154.0,0.49594842]
[1746097147162,0.18457775,96155.0,96154.0,0.49594842]
[1746097147660,0.18457775,96155.0,96154.0,0.51144236]
[1746097148160,0.30657775,96155.0,96154.0,0.51144236]
[1746097148564,0.30138008,96155.0,96154.0,0.51144236]
[1746097148755,0.2883859,96155.0,96154.0,0.51144236]
[1746097149162,0.1663859,96155.0,96154.0,0.51144236]
[1746097149364,0.15391149,96155.0,96154.0,0.51144236]
[1746097149552,0.13689663,96155.0,96154.0,0.51144236]
[1746097150163,0.2080062,96155.0,96154.0,0.51144236]
[1746097151266,4e-05,96155.0,96154.0,0.51144236]
[1746097151967,0.2080062,96155.0,96154.0,0.51144236]
[1746097152763,0.2080062,96155.0,96154.0,0.4927]
[1746097154562,0.2080062,96155.0,96154.0,0.50812275]
[1746097155062,0.2080062,96155.0,96154.0,0.51137126]
[1746097155367,4e-05,96155.0,96154.0,0.51137126]
[1746097155563,0.2080062,96155.0,96154.0,0.51137126]
[1746097156157,4e-05,96155.0,96154.0,0.51137126]
[1746097157173,0.20020917,96156.0,96154.0,0.51137126]
[1746097157373,0.20020917,96156.0,96155.0,0.01542275]
[1746097157583,0.18315451,96156.0,96155.0,0.11542275]
[1746097157885,0.18315451,96156.0,96155.0,0.39597126]
[1746097158674,0.1327,96165.0,96155.0,0.39597126]
[1746097158879,0.1739825,96172.0,96155.0,0.39597126]
[1746097158880,0.11720904,96172.0,96164.0,0.3608]
[1746097159179,0.2079316,96171.0,96170.0,0.1]
[1746097159383,0.19545874,96171.0,96170.0,0.31542275]
[1746097159578,0.32669874,96171.0,96170.0,0.3]
[1746097159884,0.32669874,96171.0,96170.0,0.30324851]
[1746097160771,0.46609874,96171.0,96170.0,0.30324851]
[1746097161086,0.46609874,96171.0,96170.0,0.31105253]
[1746097161291,0.58809874,96171.0,96170.0,0.31105253]
[1746097161482,0.59409874,96171.0,96170.0,0.21105253]
[1746097161780,0.59409874,96171.0,96170.0,0.20780402]
[1746097162880,0.95489874,96171.0,96170.0,0.20780402]
[1746097163186,0.95389874,96171.0,96170.0,0.20780402]
[1746097163487,0.95089874,96171.0,96170.0,0.20780402]
[1746097163675,0.95389874,96171.0,96170.0,0.20780402]
[1746097165190,0.59309874,96171.0,96170.0,0.20780402]
[1746097168693,0.45369874,96171.0,96170.0,0.20780402]
[1746097169491,0.58729874,96171.0,96170.0,0.20780402]
[1746097172685,0.94809874,96171.0,96170.0,0.20780402]
[1746097172888,0.94809874,96171.0,96170.0,0.02771824]
[1746097173079,0.94809874,96171.0,96170.0,0.10780402]
[1746097173493,0.94809874,96171.0,96170.0,0.00780402]
[1746097173694,0.2079511,96162.0,96161.0,0.39558637]
[1746097173886,0.2079511,96162.0,96161.0,0.69558637]
[1746097174293,0.3299511,96162.0,96161.0,0.69558637]
[1746097175798,0.3309511,96162.0,96161.0,0.69558637]
[1746097176089,0.3319511,96162.0,96161.0,0.69558637]
[1746097176992,0.3319511,96162.0,96161.0,0.70344758]
[1746097178986,0.3319511,96162.0,96161.0,0.44156121]
[1746097180698,0.3319511,96162.0,96161.0,0.10786121]
[1746097180895,0.4696511,96162.0,96161.0,0.10786121]
[1746097181198,0.5997511,96162.0,96161.0,0.10786121]
[1746097181394,1.1224431,96162.0,96161.0,0.06703213]
[1746097181587,0.2079706,96153.0,96152.0,0.26188637]
[1746097181786,0.5687706,96153.0,96152.0,0.36188637]
[1746097181994,0.5687706,96153.0,96152.0,0.26188637]
[1746097182183,0.6907706,96153.0,96152.0,0.36188637]
[1746097182390,0.9506106,96153.0,96152.0,0.36188637]
[1746097182697,0.9506106,96153.0,96152.0,0.36288637]
[1746097182900,0.9506106,96153.0,96152.0,0.62988637]
[1746097183107,0.8209106,96153.0,96152.0,0.62988637]
[1746097183599,0.8209106,96153.0,96152.0,0.63761659]
[1746097184094,0.3300106,96153.0,96152.0,0.73761659]
[1746097184296,0.2080106,96153.0,96152.0,0.47573022]
[1746097184501,0.2079706,96153.0,96152.0,0.47573022]
[1746097184702,0.2080106,96153.0,96152.0,0.47473022]
[1746097184998,0.2080106,96153.0,96152.0,0.47573022]
[1746097185499,0.2080106,96153.0,96152.0,0.47473022]
[1746097185699,0.2080106,96153.0,96152.0,0.47573022]
[1746097186091,0.3300106,96153.0,96152.0,0.47573022]
[1746097188105,0.3300106,96153.0,96152.0,0.47473022]
[1746097188296,0.3300106,96153.0,96152.0,0.47573022]
[1746097188601,0.3300106,96153.0,96152.0,0.47473022]
[1746097188802,0.3300106,96153.0,96152.0,0.47573022]
[1746097189203,0.2080106,96153.0,96152.0,0.47573022]
[1746097190102,0.3300106,96153.0,96152.0,0.47573022]
[1746097190807,0.3300106,96153.0,96152.0,0.47473022]
[1746097191002,0.3300106,96153.0,96152.0,0.47573022]
[1746097193995,0.3300106,96153.0,96152.0,0.57573022]
[1746097195105,0.2080106,96153.0,96152.0,0.57573022]
[1746097197099,0.3300106,96153.0,96152.0,0.57573022]
[1746097198112,0.2080106,96153.0,96152.0,0.83784265]
[1746097200106,0.3300106,96153.0,96152.0,0.83784265]
[1746097200303,0.6908106,96153.0,96152.0,0.73784265]
[1746097200506,0.6908106,96153.0,96152.0,0.37184265]
[1746097200701,0.6908106,96153.0,96152.0,0.47184265]
[1746097201103,0.8143106,96153.0,96152.0,0.47184265]
[1746097201304,0.8143106,96153.0,96152.0,0.37084265]
[1746097201501,0.8142706,96153.0,96152.0,0.37184265]
[1746097201698,0.8143106,96153.0,96152.0,0.47184265]
[1746097201901,0.8143106,96153.0,96152.0,0.20973022]
[1746097202112,0.60634,96153.0,96152.0,0.20873022]
[1746097202406,0.122,96153.0,96152.0,0.32683022]
[1746097202607,0.12204,96153.0,96152.0,0.44493022]
[1746097202814,5.401e-05,96161.0,96152.0,0.92197375]
[1746097203112,5.401e-05,96172.0,96166.0,0.1]
[1746097203309,0.2079381,96168.0,96167.0,0.36884156]
[1746097203609,0.2079381,96168.0,96167.0,0.25469025]
[1746097203610,0.5687381,96168.0,96167.0,0.25469025]
[1746097203814,0.2079662,96155.0,96154.0,0.1174]
[1746097204107,0.122,96155.0,96154.0,0.2174]
[1746097204414,0.122,96155.0,96154.0,0.3174]
[1746097204610,0.122,96155.0,96154.0,0.5526]
[1746097204812,0.122,96155.0,96154.0,0.56791971]
[1746097205008,0.122,96155.0,96154.0,0.5679192]
[1746097205712,5.401e-05,96163.0,96162.0,0.1]
[1746097205902,0.3608,96170.0,96162.0,0.3153192]
[1746097206106,0.35560281,96170.0,96167.0,0.1]
[1746097206413,0.35560281,96170.0,96168.0,0.4804192]
[1746097206414,0.1209,96169.0,96168.0,0.4804192]
[1746097206614,0.1209,96169.0,96168.0,0.48366744]
[1746097207014,0.1209,96169.0,96168.0,0.31726255]
[1746097207914,0.330836,96169.0,96168.0,0.30194335]
[1746097208713,0.332836,96169.0,96168.0,0.30194335]
[1746097208911,0.1249,96169.0,96168.0,0.31784058]
[1746097209114,0.004,96169.0,96168.0,0.67864058]
[1746097209316,0.004,96169.0,96168.0,0.77864058]
[1746097209503,0.00404,96169.0,96168.0,0.87864058]
[1746097209912,0.1209,96174.0,96168.0,0.87864058]
[1746097210111,0.1209,96174.0,96173.0,0.1]
[1746097210418,0.1209,96174.0,96173.0,0.31914547]
[1746097210807,0.12094,96174.0,96173.0,0.31914547]
[1746097211318,0.12294,96174.0,96173.0,0.31914547]
[1746097211718,0.1149,96184.0,96173.0,0.31914547]
[1746097211906,0.3310058,96183.0,96174.0,0.24749723]
[1746097212104,0.1231,96183.0,96175.0,0.01623979]
[1746097212308,0.3310063,96183.0,96176.0,0.01623979]
[1746097212507,0.3310063,96183.0,96177.0,0.01948803]
[1746097212711,0.1231,96183.0,96178.0,0.23333979]
[1746097212911,0.1231,96183.0,96179.0,0.01948778]
[1746097213111,0.10283254,96183.0,96180.0,0.01948778]
[1746097213316,0.2079079,96182.0,96181.0,0.01623979]
[1746097213524,0.10283254,96183.0,96181.0,0.13333979]
[1746097213815,0.10283254,96183.0,96182.0,0.01623997]
[1746097214018,0.29774626,96183.0,96182.0,0.01948796]
[1746097214929,0.29874626,96183.0,96182.0,0.01948796]
[1746097215222,0.42254626,96183.0,96182.0,0.01948796]
[1746097215522,0.21564056,96183.0,96182.0,0.11948796]
[1746097215724,0.09184056,96183.0,96182.0,0.11948796]
[1746097216108,0.09188056,96183.0,96182.0,0.11948796]
[1746097216313,0.29978626,96183.0,96182.0,0.01948796]
[1746097216915,0.09188056,96183.0,96182.0,0.05138987]
[1746097217118,0.29978626,96183.0,96182.0,0.11948796]
[1746097217417,0.29978626,96183.0,96182.0,0.11844447]
[1746097217807,0.09188056,96183.0,96182.0,0.04941815]
[1746097218011,0.28939343,96183.0,96182.0,0.03422167]
[1746097218425,0.28939343,96183.0,96182.0,0.13422167]
[1746097219116,0.28939343,96183.0,96182.0,0.35990891]
[1746097219318,0.08148773,96183.0,96182.0,0.35990891]
[1746097219528,0.00204,96183.0,96182.0,0.35990891]
[1746097219817,0.2079057,96183.0,96182.0,0.47400891]
[1746097220023,0.001,96186.0,96182.0,0.47400891]
[1746097220227,0.2079035,96184.0,96183.0,0.01621242]
[1746097220524,0.2079435,96184.0,96183.0,0.13356041]
[1746097220921,4e-05,96184.0,96183.0,0.13356041]
[1746097221921,4e-05,96184.0,96183.0,0.11734799]
[1746097222718,4e-05,96184.0,96183.0,0.2141]
[1746097222916,0.001,96186.0,96183.0,0.3141]
[1746097223625,4e-05,96184.0,96183.0,0.3141]
[1746097224520,5.401e-05,96196.0,96188.0,0.2078947]
[1746097224722,0.1015,96200.0,96199.0,0.1]
[1746097225025,0.0519608,96212.0,96203.0,0.1]
[1746097225217,0.2329,96215.0,96204.0,0.2175]
[1746097225523,0.5686582,96205.0,96204.0,0.1087]
[1746097225724,0.5686582,96205.0,96204.0,0.11194725]
[1746097225928,0.56086479,96205.0,96204.0,0.11194725]
[1746097226132,0.67846479,96205.0,96204.0,0.11194725]
[1746097226423,0.3254582,96205.0,96204.0,0.21194725]
[1746097226730,0.2078582,96205.0,96204.0,0.21194725]
[1746097227731,0.3206582,96205.0,96204.0,0.11194725]
[1746097228529,0.4390582,96205.0,96204.0,0.11194725]
[1746097228921,0.4390582,96205.0,96204.0,0.12747357]
[1746097229122,0.4390582,96205.0,96204.0,0.22747357]
[1746097229628,4e-05,96206.0,96204.0,0.33141757]
[1746097229820,0.207856,96206.0,96205.0,0.01552632]
[1746097230024,0.19538742,96206.0,96205.0,0.11877357]
[1746097230329,0.19538742,96206.0,96205.0,0.23167357]
[1746097230830,0.19538742,96206.0,96205.0,0.34227357]
[1746097231328,0.19542742,96206.0,96205.0,0.34227357]
[1746097231536,4e-05,96206.0,96205.0,0.34227357]
[1746097231828,0.3618,96216.0,96209.0,0.1]
[1746097232028,0.2078463,96211.0,96210.0,0.3235]
[1746097232218,0.2078463,96211.0,96210.0,0.4235]
[1746097232619,0.2078463,96211.0,96210.0,0.42674725]
[1746097234024,0.2078463,96211.0,96210.0,0.4235]
[1746097235237,0.2078463,96211.0,96210.0,0.42674692]
[1746097235828,0.2078463,96211.0,96210.0,0.32674692]
[1746097236034,0.2078463,96211.0,96210.0,0.4235]
[1746097236427,0.2078463,96211.0,96210.0,0.3235]
[1746097236629,0.2078463,96211.0,96210.0,0.4235]
[1746097238342,0.2078463,96211.0,96210.0,0.3235]
[1746097238540,0.3249463,96211.0,96210.0,0.3235]
[1746097238930,0.3249463,96211.0,96210.0,0.4235]
[1746097239342,0.2078463,96211.0,96210.0,0.4235]
[1746097241340,0.2078463,96211.0,96210.0,0.3235]
[1746097241638,0.0519649,96205.0,96191.0,0.26210211]
[1746097241939,0.2078971,96187.0,96186.0,0.31452253]
[1746097242733,0.3207971,96187.0,96186.0,0.31452253]
[1746097242936,0.3208371,96187.0,96186.0,0.31452253]
[1746097243642,0.3208371,96187.0,96186.0,0.41452253]
[1746097243839,0.3207971,96187.0,96186.0,0.41452253]
[1746097244140,0.2079371,96187.0,96186.0,0.41652253]
[1746097244544,0.2078953,96188.0,96186.0,0.77932253]
[1746097244735,0.2078953,96188.0,96187.0,0.2252]
[1746097245039,0.2078953,96188.0,96187.0,0.3252]
[1746097245734,0.2079353,96188.0,96187.0,0.3252]
[1746097246039,0.2079353,96188.0,96187.0,0.2272]
[1746097246735,0.2079353,96188.0,96187.0,0.3272]
[1746097246935,0.2079353,96188.0,96187.0,0.2272]
[1746097247133,0.2079353,96188.0,96187.0,0.3272]
[1746097247134,4e-05,96188.0,96187.0,0.3272]
[1746097247329,0.2079349,96188.0,96187.0,0.3272]
[1746097247534,0.2079349,96188.0,96187.0,0.3292]
[1746097250139,0.2079349,96188.0,96187.0,0.2292]
[1746097250842,0.3112349,96188.0,96187.0,0.2292]
[1746097251234,0.3112349,96188.0,96187.0,0.2272]
[1746097251436,0.3112349,96188.0,96187.0,0.2292]
[1746097251744,0.2079349,96188.0,96187.0,0.3292]
[1746097252333,0.2079349,96188.0,96187.0,0.4292]
[1746097253239,0.3608,96211.0,96187.0,0.79]
[1746097253439,0.2078582,96205.0,96204.0,0.1]
[1746097254431,0.2078582,96205.0,96204.0,0.2]
[1746097255038,0.2078982,96205.0,96204.0,0.2]
[1746097257739,4e-05,96205.0,96204.0,0.2]
[1746097257943,0.2078982,96205.0,96204.0,0.2]
[1746097258156,4e-05,96205.0,96204.0,0.2]
[1746097258337,0.3608,96211.0,96204.0,0.3]
[1746097258538,4e-05,96205.0,96204.0,0.3]
[1746097258740,0.20270312,96205.0,96204.0,0.30324692]
[1746097258939,0.1819228,96205.0,96204.0,0.30324692]
[1746097259244,0.2078582,96205.0,96204.0,0.30324692]
[1746097259649,0.2078982,96205.0,96204.0,0.30324692]
[1746097260643,0.2078982,96205.0,96204.0,0.52695262]
[1746097261148,0.2078982,96205.0,96204.0,0.54308973]
[1746097262337,0.001,96216.0,96206.0,0.2078545]
[1746097262540,0.208836,96216.0,96215.0,0.5608]
[1746097262753,0.208836,96216.0,96215.0,0.57693711]
[1746097263052,0.208876,96216.0,96215.0,0.68018403]
[1746097263653,0.1984873,96216.0,96215.0,0.68018403]
[1746097264850,0.1984873,96216.0,96215.0,0.31938403]
[1746097265147,0.1984873,96216.0,96215.0,0.31948041]
[1746097265663,0.2078744,96216.0,96215.0,0.31948041]
[1746097265854,0.0959,96235.0,96215.0,0.52734576]
[1746097266044,0.051949,96234.0,96233.0,0.1]
[1746097266353,0.2597445,96234.0,96233.0,0.11948041]
[1746097266653,0.2597845,96234.0,96233.0,0.14756903]
[1746097267344,0.2597845,96234.0,96233.0,0.24756903]
[1746097268341,0.2597845,96234.0,96233.0,0.04756903]
[1746097269047,0.25199346,96234.0,96233.0,0.04756903]
[1746097269249,0.23981959,96234.0,96233.0,0.04756903]
[1746097270252,0.22943154,96234.0,96233.0,0.04756903]
[1746097272451,0.22943154,96234.0,96224.0,0.26135459]
[1746097272452,0.207815,96225.0,96224.0,0.26135459]
[1746097272657,0.54316213,96225.0,96224.0,0.26135459]
[1746097273159,0.54316213,96225.0,96224.0,0.28935391]
[1746097273361,0.63896213,96225.0,96224.0,0.38935391]
[1746097273547,0.63896213,96225.0,96224.0,0.28935391]
[1746097274057,0.63376764,96225.0,96224.0,0.26135459]
[1746097274249,0.70616764,96225.0,96224.0,0.28857287]
[1746097274653,0.70616764,96225.0,96224.0,0.02721828]
[1746097274849,0.2078236,96221.0,96220.0,0.20887581]
[1746097275158,0.2078236,96221.0,96220.0,0.23622564]
[1746097275747,0.3021236,96221.0,96220.0,0.23622564]
[1746097276651,0.3021236,96221.0,96220.0,0.33622564]
[1746097277054,0.3021236,96221.0,96220.0,0.20887581]
[1746097277355,0.7668516,96221.0,96220.0,0.18114061]
[1746097277760,0.7668516,96221.0,96216.0,0.04157]
[1746097277761,0.2078301,96218.0,96216.0,0.04157]
[1746097278358,0.0519612,96212.0,96203.0,0.26135459]
[1746097278555,0.9294603,96204.0,96203.0,0.26135459]
[1746097278955,1.0334083,96204.0,96203.0,0.26135459]
[1746097279256,0.207855,96207.0,96206.0,0.207856]
[1746097279455,0.2078603,96205.0,96204.0,0.29316]
[1746097279646,0.0700071,96217.0,96215.0,0.1]
[1746097279852,0.2597906,96217.0,96216.0,0.0853]
[1746097280063,0.2598306,96217.0,96216.0,0.0853]
[1746097280360,0.3608,96230.0,96216.0,0.0853]
[1746097280556,0.0792,96231.0,96221.0,0.1]
[1746097280751,0.2078193,96223.0,96222.0,0.0853]
[1746097281253,0.19568577,96223.0,96222.0,0.5461]
[1746097281562,0.19568577,96223.0,96222.0,0.6461]
[1746097283361,0.19568577,96223.0,96222.0,0.6471]
[1746097284262,0.051951,96230.0,96222.0,0.6471]
[1746097284463,0.2078128,96226.0,96225.0,0.1]
[1746097284663,0.2078128,96226.0,96225.0,0.2162315]
[1746097284861,0.2078013,96232.0,96225.0,0.2162315]
[1746097285060,0.2078077,96229.0,96226.0,0.0162315]
[1746097285264,0.2078085,96228.0,96227.0,0.0948315]
[1746097285462,5.401e-05,96234.0,96227.0,0.09807781]
[1746097285763,0.0519494,96233.0,96228.0,0.0162315]
[1746097286064,0.0015,96235.0,96229.0,0.29807781]
[1746097286265,0.0015,96235.0,96230.0,0.1162315]
[1746097286456,0.0015,96235.0,96231.0,0.0162315]
[1746097286655,4e-05,96233.0,96232.0,0.0162315]
[1746097286858,0.209294,96235.0,96232.0,0.1162315]
[1746097287052,0.0015,96235.0,96233.0,0.19807781]
[1746097287270,0.2092934,96235.0,96234.0,0.0162315]
[1746097287456,0.2092934,96235.0,96234.0,0.2014315]
[1746097287657,0.2092934,96235.0,96234.0,0.20467781]
[1746097288061,0.2941934,96235.0,96234.0,0.20467781]
[1746097288364,0.2078776,96196.0,96170.0,0.365305]
[1746097288552,0.9294776,96196.0,96171.0,0.0852]
[1746097288759,0.9294776,96196.0,96186.0,0.0852]
[1746097289159,0.9294776,96196.0,96189.0,0.02459617]
[1746097289160,0.9295176,96196.0,96189.0,0.02459617]
[1746097289362,0.92432123,96196.0,96189.0,0.02459617]
[1746097289765,0.92432123,96196.0,96195.0,0.00355932]
[1746097290160,1.02827723,96196.0,96195.0,0.00355932]
[1746097290371,0.2078992,96186.0,96171.0,0.46968755]
[1746097290570,0.5686992,96186.0,96172.0,0.083]
[1746097290767,0.6726632,96186.0,96174.0,0.02450979]
[1746097290970,0.2079295,96172.0,96171.0,0.46968755]
[1746097291167,0.5687295,96172.0,96171.0,0.46968755]
[1746097291470,0.6727095,96172.0,96171.0,0.46968755]
[1746097291769,0.5687295,96172.0,96171.0,0.63128755]
[1746097292070,0.56885458,96172.0,96171.0,0.63128755]
[1746097293070,0.56889458,96172.0,96171.0,0.63128755]
[1746097293268,0.56889458,96172.0,96171.0,0.73128755]
[1746097293463,0.56885458,96172.0,96171.0,0.73228755]
[1746097293964,0.36092508,96172.0,96171.0,0.73628755]
[1746097294172,0.36096508,96172.0,96171.0,0.73628755]
[1746097294368,0.36096508,96172.0,96171.0,0.5745316]
[1746097294369,0.36092508,96172.0,96171.0,0.5745316]
[1746097294674,0.00016508,96172.0,96171.0,0.3666]
[1746097294866,0.20809458,96172.0,96171.0,0.3666]
[1746097295370,0.20809458,96172.0,96171.0,0.3696]
[1746097295571,0.20809458,96172.0,96171.0,0.3646]
[1746097295767,0.20809458,96172.0,96171.0,0.3676]
[1746097296065,0.00016508,96172.0,96171.0,0.3676]
[1746097296270,0.20809458,96172.0,96171.0,0.3686]
[1746097296469,0.20805458,96172.0,96171.0,0.4686]
[1746097296770,0.20809458,96172.0,96171.0,0.4646]
[1746097296970,0.20809458,96172.0,96171.0,0.4696]
[1746097297569,0.20809458,96172.0,96171.0,0.4706]
[1746097298572,0.20809458,96172.0,96171.0,0.4696]
[1746097299272,0.00016508,96172.0,96171.0,0.4696]
[1746097299469,0.3608,96178.0,96171.0,0.4696]
[1746097299671,0.3608,96178.0,96176.0,0.1]
[1746097299866,0.2079018,96185.0,96177.0,0.162]
[1746097300071,0.0015,96200.0,96177.0,0.162]
[1746097300271,0.0534675,96200.0,96184.0,0.0519754]
[1746097300477,0.0015,96200.0,96199.0,0.3608]
[1746097300671,0.00154,96200.0,96199.0,0.5608]
[1746097300872,0.0015,96200.0,96199.0,0.56404683]
[1746097301178,4e-05,96200.0,96199.0,0.56404683]
[1746097302178,0.207909,96200.0,96199.0,0.56404683]
[1746097302479,0.207909,96200.0,96199.0,0.56704683]
[1746097302974,0.207909,96200.0,96199.0,0.57204683]
[1746097303185,0.207909,96200.0,96199.0,0.5688]
[1746097303587,0.207909,96200.0,96199.0,0.208]
[1746097303784,0.207909,96200.0,96199.0,0.1905]
[1746097304492,0.288409,96200.0,96199.0,0.1905]
[1746097304698,0.288409,96200.0,96199.0,0.1895]
[1746097305282,0.288409,96200.0,96199.0,0.1875]
[1746097305790,0.288409,96200.0,96199.0,0.1855]
[1746097307193,0.207909,96200.0,96199.0,0.1855]
[1746097307399,0.3608,96220.0,96200.0,0.0519672]
[1746097307593,0.051958,96217.0,96210.0,0.1]
[1746097307793,0.3608,96220.0,96211.0,0.1605]
[1746097307794,0.0529587,96216.0,96211.0,0.1605]
[1746097307998,0.0529588,96216.0,96211.0,0.1605]
[1746097308201,0.2078413,96213.0,96211.0,0.1605]
[1746097308395,0.207843,96212.0,96211.0,0.1605]
[1746097309001,0.207843,96212.0,96211.0,0.1635]
[1746097309204,0.207843,96212.0,96211.0,0.1645]
[1746097309596,4e-05,96213.0,96211.0,0.1645]
[1746097309794,4e-05,96213.0,96211.0,0.1635]
[1746097309999,0.0519594,96215.0,96211.0,0.1645]
[1746097310199,0.2078426,96213.0,96211.0,0.1645]
[1746097310603,0.001,96216.0,96211.0,0.3645]
[1746097310791,4e-05,96213.0,96211.0,0.3645]
[1746097310998,0.2078374,96215.0,96211.0,0.3645]
[1746097311198,4e-05,96213.0,96211.0,0.3645]
[1746097311396,4e-05,96213.0,96211.0,0.3615]
[1746097311592,4e-05,96213.0,96211.0,0.3645]
[1746097313005,4e-05,96213.0,96211.0,0.3615]
[1746097313305,4e-05,96213.0,96211.0,0.3645]
[1746097314001,4e-05,96213.0,96212.0,0.4608]
[1746097314206,4e-05,96213.0,96212.0,0.46404639]
[1746097314410,0.2078308,96218.0,96212.0,0.62594639]
[1746097314705,0.2078325,96217.0,96212.0,0.62594639]
[1746097314902,0.0519546,96224.0,96212.0,0.8305424]
[1746097315105,0.3608,96230.0,96223.0,0.2078186]
[1746097315405,0.3608,96230.0,96227.0,0.1]
[1746097315406,0.2078085,96228.0,96227.0,0.1]
[1746097316207,0.2597966,96230.0,96227.0,0.10324611]
[1746097316404,0.2078063,96229.0,96228.0,0.17548361]
[1746097316906,0.2078063,96229.0,96228.0,0.17872972]
[1746097317304,4e-05,96230.0,96228.0,0.17872972]
[1746097317610,0.2078442,96230.0,96229.0,0.01538361]
[1746097317808,0.2078442,96230.0,96229.0,0.17548361]
[1746097318004,0.19047766,96230.0,96229.0,0.17872972]
[1746097318597,4e-05,96230.0,96229.0,0.17872972]
[1746097318797,0.2077999,96232.0,96229.0,0.63952972]
[1746097319007,0.2077999,96232.0,96230.0,0.01538361]
[1746097319208,0.2077999,96232.0,96231.0,0.01538361]
[1746097319704,0.0519488,96234.0,96231.0,0.01862972]
[1746097319898,0.2077977,96233.0,96232.0,0.17178361]
[1746097320305,0.2077977,96233.0,96232.0,0.17262978]
[1746097320502,0.2077977,96233.0,96232.0,0.17587589]
[1746097321205,0.2077956,96234.0,96232.0,0.17587589]
[1746097321410,0.19481228,96234.0,96233.0,0.01622978]
[1746097321602,0.19485228,96234.0,96233.0,0.01622978]
[1746097321806,0.19485228,96234.0,96233.0,0.17502978]
[1746097322111,0.19485228,96234.0,96233.0,0.27502978]
[1746097322299,4e-05,96234.0,96233.0,0.27827589]
[1746097322903,0.0015,96235.0,96233.0,0.27827589]
[1746097323107,0.2092934,96235.0,96234.0,0.11947589]
[1746097323311,0.2092934,96235.0,96234.0,0.27827589]
[1746097323499,0.19225313,96235.0,96234.0,0.27827589]
[1746097324615,0.18446322,96235.0,96234.0,0.20117589]
[1746097325405,0.18446322,96235.0,96234.0,0.28187589]
[1746097325609,0.2077934,96235.0,96234.0,0.2624]
[1746097329517,0.2077934,96235.0,96234.0,0.3624]
[1746097333817,0.41274,96251.0,96234.0,0.3624]
[1746097334013,0.2597345,96238.0,96237.0,0.1]
[1746097337718,0.3636425,96238.0,96237.0,0.1]
[1746097337920,0.7244425,96238.0,96237.0,0.1]
[1746097338118,0.2078063,96229.0,96228.0,0.28539578]
[1746097338319,0.2078063,96229.0,96228.0,0.26124967]
[1746097338524,0.5617263,96229.0,96228.0,0.26124967]
[1746097338726,0.7235263,96229.0,96228.0,0.07740809]
[1746097338916,0.7235263,96229.0,96217.0,0.00155897]
[1746097338917,0.2078301,96218.0,96217.0,0.00155897]
[1746097339124,0.5270701,96218.0,96217.0,0.00155897]
[1746097339324,0.6310021,96218.0,96217.0,0.00155897]
[1746097342027,0.3608,96218.0,96217.0,0.00155897]
[1746097342220,0.5686301,96218.0,96217.0,0.10155897]
[1746097342425,0.6196701,96218.0,96217.0,0.10155897]
[1746097343725,0.5686701,96218.0,96217.0,0.10155897]
[1746097345227,0.7236021,96218.0,96217.0,0.00355897]
[1746097345431,0.9736021,96218.0,96217.0,0.00355897]
[1746097345628,0.9736021,96218.0,96217.0,0.00155897]
[1746097345834,0.7236021,96218.0,96217.0,0.00255897]
[1746097346129,0.7236021,96218.0,96217.0,7e-08]
[1746097346130,0.9736021,96218.0,96217.0,7e-08]
[1746097347226,0.2078495,96209.0,96208.0,0.04157]
[1746097347428,0.5686495,96209.0,96208.0,0.04157]
[1746097347623,0.2078603,96204.0,96203.0,0.0015592]
[1746097347826,0.5686603,96204.0,96203.0,0.0015592]
[1746097348132,0.5687003,96204.0,96203.0,0.0015592]